bitfinex/quotes_BTCUSD_20251110
["timestamp","ask_amount","ask_price","bid_price","bid_amount"]
[1762789917315,0.61892231,105020.0,105010.0,0.00214378]
[1762789917549,0.24760767,105020.0,105010.0,0.00214378]
[1762789917730,0.61992231,105020.0,105010.0,0.00214378]
[1762789918169,0.61992231,105020.0,105010.0,0.00356792]
[1762789918373,0.68442196,105020.0,105010.0,0.00356792]
[1762789918763,0.8440626,105020.0,105010.0,0.00356792]
[1762789919112,1.59837724,105020.0,105010.0,0.00356792]
[1762789919318,1.2270626,105020.0,105010.0,0.00356792]
[1762789919518,1.25666339,105020.0,105010.0,0.00156792]
[1762789919941,1.25966339,105020.0,105010.0,0.00156792]
[1762789920352,0.66044111,105010.0,105000.0,1e-08]
[1762789920555,0.56965847,105000.0,104990.0,0.97771033]
[1762789920761,1.4778713,105000.0,104990.0,0.46435982]
[1762789921021,0.71256683,105000.0,104990.0,0.46435982]
[1762789921219,1.02769919,105000.0,104990.0,0.46435982]
[1762789921357,0.70469919,105000.0,104990.0,0.46435982]
[1762789921557,0.59890296,105010.0,104990.0,0.65485415]
[1762789921839,0.19047619,105000.0,104990.0,0.46435982]
[1762789922049,0.22992619,105000.0,104990.0,0.46435982]
[1762789922251,0.60124083,105000.0,104990.0,0.46435982]
[1762789922471,0.60224083,105000.0,104990.0,0.46435982]
[1762789923095,0.68809198,105000.0,104990.0,0.46435982]
[1762789923310,0.23092619,105000.0,104990.0,0.46435982]
[1762789923519,0.60224083,105000.0,104990.0,0.46435982]
[1762789923748,1.35273775,105000.0,104990.0,0.46435982]
[1762789923971,1.45512347,105000.0,104990.0,0.46435982]
[1762789924175,0.85891056,105000.0,104990.0,0.46435982]
[1762789924385,1.21363957,105000.0,104990.0,0.46435982]
[1762789924564,1.23022142,105000.0,104990.0,0.46435982]
[1762789924792,1.55322142,105000.0,104990.0,0.46435982]
[1762789925434,1.55422142,105000.0,104990.0,0.46435982]
[1762789926058,1.54422142,105000.0,104990.0,0.46435982]
[1762789926511,1.54422142,105000.0,104990.0,0.46483476]
[1762789926929,1.5684015,105000.0,104990.0,0.46483476]
[1762789927114,1.54422142,105000.0,104990.0,0.46483476]
[1762789927600,1.5684015,105000.0,104990.0,0.46483476]
[1762789927819,1.54422142,105000.0,104990.0,0.46483476]
[1762789928234,0.80159214,105000.0,104990.0,0.46483476]
[1762789928442,1.54422142,105000.0,104990.0,0.46483476]
[1762789928648,1.5684015,105000.0,104990.0,0.46483476]
[1762789928860,0.27085669,104990.0,104980.0,0.80245987]
[1762789929092,0.43774027,104990.0,104980.0,0.40303482]
[1762789929296,0.43774027,104990.0,104980.0,0.08349709]
[1762789929914,0.46428476,104990.0,104980.0,0.08349709]
[1762789930118,0.41774027,104990.0,104980.0,0.08349709]
[1762789930327,0.41356019,104990.0,104980.0,0.08349709]
[1762789930740,0.41456019,104990.0,104980.0,0.08349709]
[1762789931796,0.7709737,104990.0,104980.0,0.08349709]
[1762789932002,0.76960932,104990.0,104980.0,1e-08]
[1762789932226,0.58914475,104980.0,104970.0,0.24544146]
[1762789932439,0.5676029,104970.0,104940.0,0.71149695]
[1762789932710,0.5676029,104970.0,104940.0,0.17697873]
[1762789932711,0.58974919,104950.0,104940.0,0.17697873]
[1762789932933,0.60733104,104950.0,104940.0,0.07351469]
[1762789933136,0.63038018,104950.0,104940.0,0.07351469]
[1762789933356,0.63038018,104950.0,104940.0,0.06851469]
[1762789933357,0.59699533,104950.0,104940.0,0.06851469]
[1762789933775,0.60699532,104950.0,104940.0,0.06851469]
[1762789934010,0.69061414,104950.0,104940.0,0.06851469]
[1762789934233,0.23676736,104940.0,104930.0,8e-05]
[1762789934439,0.2843492,104940.0,104930.0,0.0005598]
[1762789934653,0.6073492,104940.0,104930.0,1e-08]
[1762789934866,0.74747249,104940.0,104930.0,1e-08]
[1762789935080,0.72850007,104940.0,104930.0,1e-08]
[1762789935525,0.71850007,104940.0,104930.0,1e-08]
[1762789935951,0.54982187,104910.0,104900.0,1e-08]
[1762789936157,0.19071231,104870.0,104860.0,0.01194]
[1762789936382,0.22024792,104870.0,104850.0,0.01194]
[1762789936574,0.22024792,104870.0,104860.0,0.01553]
[1762789936840,0.19073049,104860.0,104850.0,0.03655419]
[1762789937061,0.19073049,104860.0,104850.0,0.01208419]
[1762789937279,0.19073049,104860.0,104850.0,0.00014419]
[1762789937280,0.21073049,104860.0,104850.0,0.00014419]
[1762789937497,0.21073049,104860.0,104850.0,0.02761419]
[1762789937710,0.19073049,104860.0,104850.0,0.02761419]
[1762789938140,0.19073049,104860.0,104850.0,0.05208419]
[1762789938347,0.24791277,104860.0,104850.0,0.00314419]
[1762789938566,0.001,104860.0,104850.0,0.05508419]
[1762789938778,0.19173049,104860.0,104850.0,0.05508419]
[1762789938982,0.19073049,104860.0,104850.0,0.05208419]
[1762789939231,0.19073049,104860.0,104850.0,0.02861419]
[1762789939474,0.23125163,104860.0,104850.0,0.00114419]
[1762789939683,0.26743391,104860.0,104850.0,0.00114419]
[1762789940312,0.25812264,104860.0,104850.0,0.05308419]
[1762789940521,0.21073049,104860.0,104850.0,0.00014419]
[1762789940746,0.21073049,104860.0,104850.0,0.00347351]
[1762789940747,0.24691277,104860.0,104850.0,0.00347351]
[1762789940968,0.27306153,104860.0,104850.0,0.00647351]
[1762789941415,0.19078508,104830.0,104820.0,0.01214]
[1762789941638,0.19076688,104840.0,104820.0,0.40933263]
[1762789941849,0.19077115,104840.0,104830.0,0.04]
[1762789942301,0.19078508,104830.0,104820.0,0.04965066]
[1762789942733,0.19078508,104830.0,104820.0,0.07656066]
[1762789942988,0.19078508,104830.0,104820.0,0.03953066]
[1762789943198,0.19078508,104830.0,104820.0,0.07656066]
[1762789943413,0.19078508,104830.0,104820.0,0.03953066]
[1762789944298,0.19078508,104830.0,104820.0,0.00068066]
[1762789944512,0.2509407,104830.0,104820.0,0.00068066]
[1762789944730,0.31283944,104830.0,104820.0,0.00068066]
[1762789945177,0.31383944,104830.0,104820.0,0.00268066]
[1762789945855,0.27368382,104830.0,104820.0,0.00268066]
[1762789946069,0.24796736,104830.0,104820.0,0.00268066]
[1762789946294,0.27513543,104830.0,104820.0,0.00268066]
[1762789946710,0.24796736,104830.0,104820.0,0.00268066]
[1762789947150,0.27413543,104830.0,104820.0,0.00139477]
[1762789947365,0.30590511,104830.0,104820.0,0.00239477]
[1762789947635,0.33227727,104830.0,104820.0,0.00239477]
[1762789947889,0.24796736,104830.0,104820.0,0.00239477]
[1762789948110,0.27433952,104830.0,104820.0,0.00239477]
[1762789948519,0.25433952,104830.0,104820.0,0.00239477]
[1762789948771,0.27433952,104830.0,104820.0,0.00239477]
[1762789948993,0.19082148,104810.0,104800.0,0.06472477]
[1762789949212,0.19129832,104810.0,104800.0,0.02769477]
[1762789949692,0.19129832,104810.0,104800.0,0.05460477]
[1762789949905,0.19129832,104810.0,104800.0,0.02769477]
[1762789949906,0.2274806,104810.0,104800.0,0.02769477]
[1762789950110,0.5704806,104810.0,104800.0,0.02769477]
[1762789950323,0.64761059,104810.0,104800.0,0.02769477]
[1762789950541,0.2474806,104810.0,104800.0,0.05460477]
[1762789950789,0.02047684,104810.0,104800.0,0.09163477]
[1762789951013,0.00047684,104810.0,104800.0,0.11071873]
[1762789951236,0.00047684,104810.0,104800.0,0.09163477]
[1762789951684,0.19129832,104810.0,104800.0,0.09163477]
[1762789952130,0.19129832,104810.0,104800.0,0.46387674]
[1762789952602,0.19129832,104810.0,104800.0,0.09163477]
[1762789952844,0.22951008,104810.0,104800.0,0.09163477]
[1762789953079,0.24951008,104810.0,104800.0,0.05460477]
[1762789953305,0.25051008,104810.0,104800.0,0.05760477]
[1762789953526,0.21229832,104810.0,104800.0,0.05760477]
[1762789953776,0.21229832,104810.0,104800.0,0.09463477]
[1762789954002,0.19229832,104810.0,104800.0,0.09463477]
[1762789954452,0.19229832,104810.0,104800.0,0.03069477]
[1762789954690,0.21229832,104810.0,104800.0,0.031171]
[1762789954913,0.28852831,104810.0,104800.0,0.031171]
[1762789955554,0.28852831,104810.0,104800.0,0.058081]
[1762789955761,0.28852831,104810.0,104800.0,0.095111]
[1762789955968,0.28852831,104810.0,104800.0,0.058081]
[1762789956838,0.21229832,104810.0,104800.0,0.095111]
[1762789957063,0.19229832,104810.0,104800.0,0.095111]
[1762789958122,0.00147684,104810.0,104800.0,0.70552371]
[1762789958389,0.19080388,104820.0,104800.0,0.60063966]
[1762789958597,0.24354433,104830.0,104820.0,0.02691]
[1762789958803,0.04322,104830.0,104820.0,0.56946866]
[1762789959014,0.04322,104830.0,104820.0,0.68027194]
[1762789959221,0.04322,104830.0,104820.0,0.70718194]
[1762789959430,0.00262,104830.0,104820.0,0.76027194]
[1762789959641,0.20162166,104860.0,104830.0,0.19077392]
[1762789959843,0.00135287,104860.0,104850.0,0.55130866]
[1762789960279,0.00135287,104860.0,104850.0,0.77908734]
[1762789960690,0.00135287,104860.0,104850.0,0.27355868]
[1762789960894,0.00135287,104860.0,104850.0,0.77908734]
[1762789961303,0.00135287,104860.0,104850.0,0.58833866]
[1762789961509,0.00135287,104860.0,104850.0,0.77908734]
[1762789961922,0.20032543,104900.0,104860.0,0.19071628]
[1762789962133,0.19067662,104890.0,104880.0,0.52439866]
[1762789962370,0.19067662,104890.0,104880.0,0.01887]
[1762789962569,0.19067594,104890.0,104880.0,0.52439866]
[1762789962778,0.19067594,104890.0,104880.0,0.08281]
[1762789964072,0.20046856,104900.0,104880.0,0.27350388]
[1762789964275,0.00014313,104900.0,104890.0,0.08281]
[1762789964443,0.19080089,104900.0,104890.0,0.08281]
[1762789964691,0.20838752,104900.0,104890.0,0.08281]
[1762789966092,0.24925128,104900.0,104890.0,0.08281]
[1762789966295,0.20838752,104900.0,104890.0,0.08281]
[1762789966499,0.20838752,104900.0,104890.0,0.04578]
[1762789967060,0.20838752,104900.0,104890.0,0.08281]
[1762789967494,0.20838752,104900.0,104890.0,0.04578]
[1762789967702,0.22838752,104900.0,104890.0,0.01987]
[1762789967877,0.27125128,104900.0,104890.0,0.01987]
[1762789968211,0.25125128,104900.0,104890.0,0.08381]
[1762789968429,0.25125128,104900.0,104890.0,0.04678]
[1762789968763,0.20838752,104900.0,104890.0,0.08381]
[1762789969409,0.20838752,104900.0,104890.0,0.08281]
[1762789969609,0.20933882,104900.0,104890.0,0.08281]
[1762789969896,0.21033882,104900.0,104890.0,0.08281]
[1762789971278,0.21033882,104900.0,104890.0,0.04578]
[1762789971482,0.27139771,104900.0,104890.0,0.04578]
[1762789971795,0.27139771,104900.0,104890.0,0.01887]
[1762789972384,0.27139771,104900.0,104890.0,0.04384]
[1762789972790,0.25139771,104900.0,104890.0,0.07944]
[1762789973001,0.27886187,104900.0,104890.0,0.07944]
[1762789973397,0.27886187,104900.0,104890.0,0.04384]
[1762789973603,0.27886187,104900.0,104850.0,0.05447]
[1762789973604,0.19073049,104860.0,104850.0,0.05447]
[1762789973807,0.22980354,104860.0,104850.0,0.01887]
[1762789974004,0.22735686,104860.0,104850.0,0.04384]
[1762789974592,0.22735686,104860.0,104850.0,0.08135]
[1762789975000,0.22735686,104860.0,104850.0,0.04384]
[1762789975219,0.19074868,104850.0,104840.0,0.05638]
[1762789975642,0.19074868,104850.0,104840.0,0.08085]
[1762789976383,0.19173455,104860.0,104840.0,0.08085]
[1762789976584,0.2309328,104860.0,104850.0,0.0183]
[1762789976790,0.19074868,104850.0,104840.0,0.05638]
[1762789977232,0.19174868,104850.0,104840.0,0.08185]
[1762789977778,0.001,104850.0,104840.0,0.08185]
[1762789977998,0.19174868,104850.0,104840.0,0.08185]
[1762789980670,0.229997,104850.0,104840.0,0.01987]
[1762789980878,0.27504338,104850.0,104840.0,0.001]
[1762789981038,0.6267615,104850.0,104840.0,0.001]
[1762789981446,0.3637615,104850.0,104840.0,0.001]
[1762789982265,0.3437615,104850.0,104840.0,0.02547]
[1762789982643,0.3437615,104850.0,104840.0,0.001]
[1762789982845,0.6867615,104850.0,104840.0,0.001]
[1762789984057,0.69627166,104850.0,104840.0,0.001]
[1762789984238,0.6867615,104850.0,104840.0,0.001]
[1762789985450,0.24696736,104830.0,104820.0,0.00135313]
[1762789985674,0.30832463,104830.0,104820.0,0.00149674]
[1762789985875,0.24454958,104830.0,104820.0,0.06347674]
[1762789986098,0.2083673,104830.0,104820.0,0.06347674]
[1762789986655,0.2083673,104830.0,104820.0,0.02596674]
[1762789986856,0.2083673,104830.0,104820.0,0.00149674]
[1762789987065,0.2093673,104830.0,104820.0,0.06647674]
[1762789987887,0.19076874,104840.0,104820.0,0.76280868]
[1762789988115,0.26128611,104850.0,104830.0,0.77737224]
[1762789988316,0.26128611,104850.0,104830.0,0.03751]
[1762789988532,0.26128611,104850.0,104840.0,0.06198]
[1762789988757,0.26028611,104850.0,104840.0,0.06198]
[1762789988941,0.25074868,104850.0,104840.0,0.56750866]
[1762789989177,0.25074868,104850.0,104840.0,0.06198]
[1762789990007,0.061,104850.0,104840.0,0.86315231]
[1762789990185,0.061,104850.0,104840.0,0.84407563]
[1762789990409,0.06,104850.0,104840.0,0.84407563]
[1762789990536,0.06,104850.0,104840.0,0.56750866]
[1762789990742,0.06,104850.0,104840.0,0.75827554]
[1762789991394,0.06,104850.0,104840.0,0.25274688]
[1762789991600,0.06,104850.0,104840.0,0.75827554]
[1762789992222,0.06,104850.0,104840.0,0.25474688]
[1762789992429,0.061,104850.0,104840.0,0.76027554]
[1762789992842,0.06,104850.0,104840.0,0.75827554]
[1762789993181,0.061,104850.0,104840.0,0.76427554]
[1762789993379,0.061,104850.0,104840.0,0.83583171]
[1762789993582,0.19095109,104870.0,104840.0,0.83583171]
[1762789993782,0.2167958,104920.0,104870.0,0.19070097]
[1762789993991,0.2167958,104920.0,104900.0,0.04277]
[1762789994339,0.22029469,104910.0,104900.0,0.0183]
[1762789994548,0.2167958,104920.0,104900.0,0.08028]
[1762789994753,0.1907258,104920.0,104910.0,0.04277]
[1762789994962,0.19109884,104920.0,104910.0,0.08028]
[1762789995169,0.19065776,104900.0,104890.0,0.05581]
[1762789995399,0.19067594,104890.0,104880.0,0.0183]
[1762789995611,0.19067594,104890.0,104880.0,0.05581]
[1762789995803,0.19067594,104890.0,104880.0,0.08028]
[1762789997123,0.19074868,104850.0,104830.0,0.05581]
[1762789997570,0.19074868,104850.0,104840.0,0.06198]
[1762789997778,0.19073154,104860.0,104840.0,0.65330875]
[1762789998001,0.19074868,104850.0,104840.0,0.50552866]
[1762789998223,0.19074868,104850.0,104830.0,0.52382866]
[1762789998428,0.20026806,104860.0,104840.0,0.75827554]
[1762789998656,0.20026806,104860.0,104850.0,0.04277]
[1762789998872,0.20028429,104870.0,104850.0,0.60488352]
[1762789999072,0.19074868,104870.0,104860.0,0.52999866]
[1762789999300,0.19071231,104870.0,104860.0,0.06198]
[1762790000260,0.20047688,104880.0,104860.0,0.56750866]
[1762790000466,0.20047688,104880.0,104870.0,0.08028]
[1762790001497,0.23959216,104880.0,104870.0,0.04277]
[1762790001694,0.20047688,104880.0,104870.0,0.04277]
[1762790001936,0.20047688,104880.0,104870.0,0.08028]
[1762790002271,0.19094218,104880.0,104870.0,0.08028]
[1762790003114,0.19093198,104880.0,104870.0,0.08028]
[1762790003525,0.19093198,104880.0,104870.0,0.08128]
[1762790003966,0.19093198,104880.0,104870.0,0.27199231]
[1762790004175,0.00023786,104880.0,104870.0,0.86332106]
[1762790004793,0.00023786,104880.0,104870.0,0.16708009]
[1762790005215,0.00023786,104880.0,104870.0,0.86332106]
[1762790005641,0.00023786,104880.0,104870.0,0.86232106]
[1762790006073,0.00123786,104880.0,104870.0,0.86632106]
[1762790006483,0.19193198,104880.0,104870.0,0.08428]
[1762790006688,0.00023786,104880.0,104870.0,0.77652097]
[1762790006875,0.00123786,104880.0,104870.0,0.77952097]
[1762790007284,0.00123786,104880.0,104870.0,0.27399231]
[1762790007415,0.00123786,104880.0,104870.0,0.77952097]
[1762790008534,0.19064115,104910.0,104890.0,0.19066149]
[1762790008746,0.00014316,104910.0,104900.0,0.24941353]
[1762790008948,0.00014316,104910.0,104900.0,0.77165642]
[1762790009152,3.16e-06,104910.0,104900.0,0.85745651]
[1762790009354,3.16e-06,104910.0,104900.0,0.77165642]
[1762790010388,0.00100316,104910.0,104900.0,0.77465642]
[1762790010589,0.19164275,104910.0,104900.0,0.07847]
[1762790011192,0.25164275,104910.0,104900.0,0.07847]
[1762790013344,0.25164275,104910.0,104900.0,0.26912776]
[1762790013550,0.25164275,104910.0,104900.0,0.07847]
[1762790014770,0.06100316,104910.0,104900.0,0.26912776]
[1762790014979,0.25235609,104910.0,104900.0,0.26912776]
[1762790015229,0.25235609,104910.0,104900.0,0.07847]
[1762790015431,0.25235609,104910.0,104900.0,0.26912776]
[1762790015650,0.0617165,104910.0,104900.0,0.26912776]
[1762790016243,0.00071334,104910.0,104900.0,0.86045651]
[1762790016878,0.00071334,104910.0,104900.0,0.72723722]
[1762790018049,0.00071334,104910.0,104900.0,0.72423722]
[1762790018402,0.00071334,104910.0,104900.0,0.7995103]
[1762790018805,0.20017592,104950.0,104930.0,0.19059396]
[1762790019010,0.21311709,104950.0,104940.0,0.01715]
[1762790019218,0.1906014,104940.0,104930.0,0.01715]
[1762790019680,0.1906014,104940.0,104930.0,0.44777937]
[1762790019878,0.21311709,104950.0,104930.0,0.63838262]
[1762790019879,0.19412875,104950.0,104930.0,0.63838262]
[1762790020025,0.19058509,104940.0,104930.0,0.07547]
[1762790020230,0.19058509,104940.0,104930.0,0.38945937]
[1762790020480,0.19058509,104940.0,104930.0,0.60260262]
[1762790020836,0.00348117,104950.0,104930.0,0.63838262]
[1762790021044,0.51397955,104980.0,104970.0,0.19053062]
[1762790021045,0.0004,104980.0,104970.0,0.19053062]
[1762790021246,0.00054435,104980.0,104970.0,0.60252999]
[1762790021470,0.20000247,105000.0,104970.0,0.44777937]
[1762790021678,0.20000247,105000.0,104990.0,0.01715]
[1762790022101,0.20000247,105000.0,104960.0,0.01715]
[1762790022102,0.19053062,104970.0,104960.0,0.01715]
[1762790022308,0.23081548,104970.0,104960.0,0.00014435]
[1762790022510,0.2843029,104970.0,104960.0,0.00014435]
[1762790023222,0.24434191,104970.0,104960.0,0.00014435]
[1762790023422,0.20815963,104970.0,104960.0,0.00014435]
[1762790024050,0.19053062,104970.0,104960.0,0.00014435]
[1762790024309,0.19053062,104970.0,104960.0,0.05846435]
[1762790024695,0.19051247,104980.0,104960.0,0.24901313]
[1762790024902,0.19051247,104980.0,104970.0,0.02254]
[1762790025131,0.19051247,104980.0,104970.0,0.05832]
[1762790025340,0.19053062,104970.0,104960.0,0.00014435]
[1762790025473,0.19053062,104970.0,104960.0,0.03592435]
[1762790025682,0.19053062,104970.0,104960.0,0.24901313]
[1762790025895,0.19051247,104980.0,104960.0,0.24901313]
[1762790026090,0.001,104980.0,104970.0,0.24885062]
[1762790026331,0.001,104980.0,104970.0,0.43062937]
[1762790026555,0.19051247,104980.0,104970.0,0.05832]
[1762790028261,0.19051247,104980.0,104970.0,0.24885062]
[1762790028446,0.19051247,104980.0,104970.0,0.05832]
[1762790028806,0.19051247,104980.0,104970.0,0.24985062]
[1762790029011,0.20000247,105000.0,104980.0,0.19051247]
[1762790029253,0.20000247,105000.0,104990.0,0.03969]
[1762790029432,0.20000247,105000.0,104990.0,0.01715]
[1762790030904,0.20000247,105000.0,104990.0,0.07547]
[1762790031180,0.20214033,105000.0,104990.0,0.07547]
[1762790031551,0.20414033,105000.0,104990.0,0.07547]
[1762790032360,0.19461405,105000.0,104990.0,0.26596433]
[1762790032583,0.19261405,105000.0,104990.0,0.07547]
[1762790032769,0.19461405,105000.0,104990.0,0.07547]
[1762790033785,0.00413786,105000.0,104990.0,0.44777937]
[1762790034031,0.00213786,105000.0,104990.0,0.6382737]
[1762790034465,0.00313786,105000.0,104990.0,0.6382737]
[1762790035220,0.19361405,105000.0,104990.0,0.44777937]
[1762790035417,0.19361405,105000.0,104990.0,0.6382737]
[1762790035732,0.00213786,105000.0,104990.0,0.6382737]
[1762790035946,0.00213786,105000.0,104990.0,0.6402737]
[1762790037182,0.00213786,105000.0,104990.0,0.65027369]
[1762790037383,0.00213786,105000.0,104990.0,1.02258306]
[1762790037563,0.0004,105010.0,105000.0,0.19047619]
[1762790037764,0.0004,105010.0,105000.0,0.70401565]
[1762790038111,0.0004,105010.0,105000.0,0.33170628]
[1762790038330,0.0004,105010.0,105000.0,0.70401565]
[1762790038731,0.0004,105010.0,105000.0,0.51353946]
[1762790038943,0.19085805,105010.0,105000.0,0.51353946]
[1762790039072,0.19185805,105010.0,105000.0,0.70901565]
[1762790039291,0.0014,105010.0,105000.0,0.70901565]
[1762790040393,0.0004,105010.0,105000.0,1.07632502]
[1762790040565,0.0004,105010.0,105000.0,0.70401565]
[1762790040786,0.0004,105010.0,105000.0,0.05543]
[1762790040787,0.19085805,105010.0,105000.0,0.05543]
[1762790041002,0.19085805,105010.0,105000.0,0.43073937]
[1762790041224,0.20014805,105010.0,105000.0,0.003]
[1762790041437,0.19085805,105010.0,105000.0,0.05843]
[1762790041979,0.19085805,105010.0,105000.0,0.70701565]
[1762790041980,0.0004,105010.0,105000.0,0.70701565]
[1762790042181,0.0004,105010.0,105000.0,0.70401565]
[1762790042439,0.0004,105010.0,104990.0,0.28846172]
[1762790042440,0.22340805,105010.0,104990.0,0.01715]
[1762790042645,0.19051247,104980.0,104970.0,0.01633]
[1762790042803,0.19051247,104980.0,104970.0,0.01605]
[1762790043423,0.21597506,104990.0,104970.0,0.03775]
[1762790043630,0.19999999,105000.0,104980.0,0.23126371]
[1762790043814,0.19049433,104990.0,104970.0,0.70794597]
[1762790044002,0.19051247,104980.0,104970.0,0.01605]
[1762790044204,0.19049433,104990.0,104980.0,0.0217]
[1762790044452,0.19999999,105000.0,104980.0,0.05543]
[1762790044663,0.19049433,104990.0,104980.0,0.05543]
[1762790045059,0.20038547,105010.0,104990.0,0.19049433]
[1762790045307,0.01825127,105010.0,105000.0,0.0217]
[1762790045528,0.19109751,105010.0,105000.0,0.0217]
[1762790045734,0.19047619,105000.0,104990.0,0.03373]
[1762790045934,0.19051247,104980.0,104970.0,0.01605]
[1762790046103,0.19053062,104970.0,104960.0,0.00135069]
[1762790046323,0.19053062,104970.0,104960.0,0.00149504]
[1762790046736,0.20816341,104970.0,104960.0,0.00149504]
[1762790048384,0.20816341,104970.0,104960.0,0.00349504]
[1762790049840,0.310702,104970.0,104960.0,0.00349504]
[1762790050211,0.66988428,104970.0,104960.0,1e-08]
[1762790050421,0.68988428,104970.0,104960.0,1e-08]
[1762790050629,0.71021357,104970.0,104960.0,1e-08]
[1762790050836,0.71021357,104970.0,104910.0,0.05964438]
[1762790050837,0.19061657,104930.0,104910.0,0.25028361]
[1762790051053,0.19062142,104920.0,104910.0,0.05059358]
[1762790051260,0.19062142,104920.0,104910.0,0.01686358]
[1762790051468,0.59314897,104920.0,104910.0,0.00081358]
[1762790051670,0.66280125,104920.0,104910.0,0.00081358]
[1762790051871,0.58969045,104920.0,104910.0,0.00081358]
[1762790051992,0.58969045,104920.0,104910.0,0.00181358]
[1762790053491,0.64316045,104920.0,104910.0,0.00181358]
[1762790053911,0.64316045,104920.0,104910.0,0.00081358]
[1762790054115,0.72805515,104920.0,104910.0,0.00081358]
[1762790054743,0.60969045,104920.0,104910.0,0.00081358]
[1762790054925,0.58969045,104920.0,104910.0,0.00081358]
[1762790055103,0.59269045,104920.0,104910.0,0.00081358]
[1762790055729,0.62616045,104920.0,104910.0,0.00081358]
[1762790056176,0.64616045,104920.0,104910.0,0.00081358]
[1762790056316,0.73135515,104920.0,104910.0,0.00081358]
[1762790056857,0.69788515,104920.0,104910.0,0.00081358]
[1762790057054,0.67788515,104920.0,104910.0,0.00081358]
[1762790057404,0.31870287,104920.0,104910.0,0.00081358]
[1762790057581,0.19362142,104920.0,104910.0,0.05624358]
[1762790058013,0.003,104920.0,104910.0,0.24688317]
[1762790058427,0.19362142,104920.0,104910.0,0.02251358]
[1762790058705,0.19362142,104920.0,104910.0,0.00081358]
[1762790058904,0.29362142,104920.0,104910.0,0.00081358]
[1762790059359,0.31588142,104920.0,104910.0,0.00081358]
[1762790059514,0.29362142,104920.0,104910.0,0.00081358]
[1762790060135,0.7793045,104920.0,104910.0,0.00081358]
[1762790060310,0.79683233,104920.0,104910.0,1e-08]
[1762790060487,0.79783233,104920.0,104910.0,1e-08]
[1762790060692,0.82490585,104920.0,104910.0,1e-08]
[1762790061104,0.82390585,104920.0,104910.0,1e-08]
[1762790061529,0.82690585,104920.0,104910.0,1e-08]
[1762790061731,0.82690585,104920.0,104910.0,0.00118854]
[1762790062068,0.74306153,104920.0,104910.0,0.00118854]
[1762790062485,0.75241056,104920.0,104910.0,0.00118854]
[1762790062685,0.6720637,104920.0,104910.0,0.00118854]
[1762790062916,0.7226437,104920.0,104910.0,0.00118854]
[1762790063266,0.7066437,104920.0,104910.0,0.00218854]
[1762790063469,0.78549004,104920.0,104910.0,0.00218854]
[1762790063712,0.78149004,104920.0,104910.0,0.00118854]
[1762790063905,0.75091004,104920.0,104910.0,0.00118854]
[1762790064130,0.75391004,104920.0,104910.0,0.00118854]
[1762790064492,0.78449004,104920.0,104910.0,0.00118854]
[1762790065151,0.80198663,104920.0,104910.0,0.00118854]
[1762790065391,0.82918413,104920.0,104910.0,0.00118854]
[1762790065804,0.81918413,104920.0,104910.0,0.00118854]
[1762790066224,0.79198663,104920.0,104910.0,1e-08]
[1762790066835,0.81671419,104920.0,104910.0,1e-08]
[1762790067245,0.79898663,104920.0,104910.0,1e-08]
[1762790067450,0.78298663,104920.0,104910.0,0.00100001]
[1762790067658,0.80298663,104920.0,104910.0,0.00100001]
[1762790068079,0.6960637,104920.0,104910.0,0.00100001]
[1762790068280,0.37058568,104920.0,104910.0,0.00100001]
[1762790068489,0.3530637,104920.0,104910.0,0.00100001]
[1762790068901,0.29462142,104920.0,104910.0,0.01769001]
[1762790069662,0.29062142,104920.0,104910.0,0.01669001]
[1762790069876,0.34135822,104920.0,104910.0,0.01669001]
[1762790070078,0.34235822,104920.0,104910.0,0.01669001]
[1762790070503,0.36369822,104920.0,104910.0,1e-08]
[1762790070949,0.29162142,104920.0,104910.0,0.01669001]
[1762790071297,0.29162142,104920.0,104910.0,1e-08]
[1762790071487,0.30917854,104920.0,104910.0,1e-08]
[1762790072178,0.29162142,104920.0,104910.0,0.01669001]
[1762790072390,0.33055089,104920.0,104910.0,1e-08]
[1762790072601,0.45204292,104920.0,104910.0,1e-08]
[1762790072807,0.47204292,104920.0,104910.0,1e-08]
[1762790073776,0.49957834,104920.0,104910.0,1e-08]
[1762790074195,0.39292859,104920.0,104910.0,0.03698001]
[1762790074400,0.11858947,104920.0,104910.0,0.63244897]
[1762790074635,0.101,104920.0,104910.0,0.63244897]
[1762790076275,0.101,104920.0,104910.0,0.95544897]
[1762790076491,0.1,104920.0,104910.0,0.95544897]
[1762790076907,0.1,104920.0,104910.0,1.08915464]
[1762790077114,0.1,104920.0,104910.0,0.59513959]
[1762790077313,0.1,104920.0,104910.0,1.09715463]
[1762790077564,0.1,104920.0,104910.0,1.15740489]
[1762790077784,0.101,104920.0,104910.0,1.16140489]
[1762790079381,0.101,104920.0,104910.0,1.17140488]
[1762790079585,0.08549796,104920.0,104910.0,1.18140487]
[1762790080418,0.20005715,104970.0,104950.0,0.19055905]
[1762790080624,0.21770807,104970.0,104960.0,0.03552]
[1762790080826,0.20818154,104970.0,104960.0,0.25858878]
[1762790081036,0.01765092,104970.0,104960.0,0.76260382]
[1762790081241,0.20807173,104990.0,104970.0,0.19052453]
[1762790081449,0.20807173,104990.0,104980.0,0.01669]
[1762790081450,0.22570945,104990.0,104980.0,0.01669]
[1762790081653,0.21666591,104990.0,104980.0,0.03698]
[1762790081858,0.21666591,104990.0,104980.0,0.03343]
[1762790082474,0.20869591,104990.0,104980.0,0.06595]
[1762790082893,0.22021591,104990.0,104980.0,0.01314]
[1762790083287,0.22121591,104990.0,104980.0,0.01314]
[1762790083900,0.19051247,104980.0,104970.0,0.01669]
[1762790084547,0.19053062,104970.0,104960.0,0.01523]
[1762790084750,0.19053062,104970.0,104960.0,0.04775]
[1762790084925,0.19053062,104970.0,104960.0,0.06804]
[1762790086903,0.19053062,104970.0,104960.0,0.03552]
[1762790087038,0.19053062,104970.0,104960.0,0.06904]
[1762790087711,0.19053062,104970.0,104960.0,0.25858878]
[1762790088022,0.19051247,104980.0,104960.0,0.76260382]
[1762790088222,0.19053062,104970.0,104960.0,0.20577878]
[1762790088428,0.19051247,104980.0,104970.0,0.22751062]
[1762790088766,0.2005829,104990.0,104970.0,0.26003062]
[1762790088979,0.19051247,104980.0,104970.0,0.01669]
[1762790089177,0.19051247,104980.0,104970.0,0.20722062]
[1762790089376,0.2005829,104990.0,104970.0,0.26003062]
[1762790089579,0.19051247,104980.0,104970.0,0.01669]
[1762790089806,0.19051247,104980.0,104970.0,0.26003062]
[1762790090241,0.19051247,104980.0,104970.0,0.0695]
[1762790091382,0.19051247,104980.0,104970.0,0.26003062]
[1762790091562,0.19105819,104990.0,104980.0,0.19051247]
[1762790091782,0.19105819,104990.0,104980.0,0.05281]
[1762790092121,0.19105819,104990.0,104980.0,0.24332247]
[1762790092321,0.00048117,104990.0,104980.0,0.74733751]